Cogmind - Beta 12 @@@ ROGUE MODE // 2024.01.22 @ 08:13:44 // Winter2019/RPGLIKE Player: Hermelin Result: Destroyed by Q531-l with Enhanced Gamma Bomb Array Performance ------------- Evolutions (9) 4500 Regions Visited (25) 5000 Robots Destroyed (426) 2130 Value Destroyed (22070) 22070 Prototype IDs (243) 4860 Alien Tech Used (2) 400 Bonus (21094) 21094 TOTAL SCORE: 60054 Bonus ------- Triggered High Security 500 Triggered Max Security 1000 High Alert Combat Kills 14247 Follower Combat Kills 1109 Entered DSFs 1000 Aligned with FarCom 300 Met Data Miner 300 Used Data Conduit 3000 Met Zhirov 300 Scanned by Researcher 500 Pursued by Intercept 500 Friendly Fire -1662 Cogmind --------- Core Integrity 0/2000 Matter 5/300 Energy 538/850 System Corruption 7% Temperature Cool (0) Movement Immobile (Siege) Location -1/Access Parts ------- > --- POWER (3) -------- Quantum Reactor Reinforced Quantum Reactor Reinforced Quantum Reactor > --- PROPULSION (6) --- Armored Heavy Treads (fused) Improved Heavy Siege Treads Centrium Heavy Treads > --- UTILITY (14) ----- Advanced Power Amplifier Cryofiber Web Experimental Cooling System Experimental Cooling System Improved Terrain Scanner Encrypted Comm Array Advanced Target Analyzer Advanced Weapon Cycler Centrium Heavy Armor Plating AEGIS Remote Shield > --- WEAPON (3) ------- Null Cannon Omega Cannon > --- INVENTORY (6) ---- Protomatter-8 Improved Heavy Siege Treads Small Matter Pod (50) Molecular Deconstructor Peak State ------------ > --- POWER ------------ Reinforced Quantum Reactor Reinforced Quantum Reactor > --- PROPULSION ------- Armored Heavy Treads Improved Heavy Siege Treads Centrium Heavy Treads > --- UTILITY ---------- Advanced Power Amplifier Cryofiber Web Experimental Cooling System Experimental Cooling System Improved Terrain Scanner Encrypted Comm Array Advanced Weapon Cycler Centrium Heavy Armor Plating Damper Plating AEGIS Remote Shield > --- WEAPON ----------- Null Cannon Omega Cannon > --- INVENTORY -------- Improved Heavy Siege Treads Small Matter Pod Transdimensional Reconstructor Molecular Deconstructor [Rating: 205] Favorites ----------- Power Antimatter Reactor Engine Ion Engine Power Core Nuclear Core Reactor Antimatter Reactor Propulsion Armored Treads Treads Armored Treads Wheel Wheel Utility Improved Cooling System Device Improved Cooling System Processor Advanced Visual Processing Unit Hackware Advanced System Shield Protection Damper Plating Weapon Firepult Energy Gun Small Laser Energy Cannon Firepult Ballistic Gun Assault Rifle Ballistic Cannon Omega Cannon Launcher Grenade Launcher Special Weapon Molecular Deconstructor Build | -11 -10 -10 -10 -9 -8 -7 -7 -7 -7 -6 -6 -6 -6 -5 -5 -5 -5 -5 -4 -4 -4 -3 -3 -2 -1 ------- Run | Jun Mat Min Exi Min Mat Fac Was Fac DSF Fac Low Low Dat Pro Fac Upp Upp Zhi Pro Fac DSF Res Tes Res Acc Slots Evolved 22 | 3 2 2 . 1 2 1 . . 1 2 1 . . 1 1 . . . . . . 3 . . 2 Power 2 | . . 1 . . . . . . . . . . . . . . . . . . . . . . 1 Propulsion 5 | 1 1 . . . . . . . . 1 . . . . . . . . . . . 2 . . . Utility 13 | 1 1 1 . 1 2 1 . . 1 1 1 . . 1 1 . . . . . . 1 . . . Weapon 2 | 1 . . . . . . . . . . . . . . . . . . . . . . . . 1 Parts Attached 94 | 6 8 5 1 2 8 . 9 . 1 2 3 2 2 1 3 . . 2 . 1 2 7 24 1 4 Power 10 | 1 1 1 . . . . 2 . . . . . . . . . . 1 . . . . 3 . 1 Engine 2 | 1 1 . . . . . . . . . . . . . . . . . . . . . . . . Core 1 | . . 1 . . . . . . . . . . . . . . . . . . . . . . . Reactor 7 | . . . . . . . 2 . . . . . . . . . . 1 . . . . 3 . 1 Propulsion 15 | 2 2 . . . 3 . . . . 1 . . . . . . . . . . 2 4 1 . . Treads 14 | 1 2 . . . 3 . . . . 1 . . . . . . . . . . 2 4 1 . . Leg . | . . . . . . . . . . . . . . . . . . . . . . . . . . Wheel 1 | 1 . . . . . . . . . . . . . . . . . . . . . . . . . Hover . | . . . . . . . . . . . . . . . . . . . . . . . . . . Flight . | . . . . . . . . . . . . . . . . . . . . . . . . . . Utility 46 | 1 3 2 . 2 5 . 7 . 1 1 3 . . 1 3 . . 1 . 1 . 3 10 1 1 Device 28 | 1 1 2 . 1 2 . 2 . 1 1 3 . . 1 1 . . 1 . 1 . 2 7 1 . Storage . | . . . . . . . . . . . . . . . . . . . . . . . . . . Processor 3 | . . . . . 1 . 1 . . . . . . . . . . . . . . . . . 1 Hackware 2 | . . . . . . . . . . . . . . . 2 . . . . . . . . . . Protection 13 | . 2 . . 1 2 . 4 . . . . . . . . . . . . . . 1 3 . . Artifact . | . . . . . . . . . . . . . . . . . . . . . . . . . . Weapon 23 | 2 2 2 1 . . . . . . . . 2 2 . . . . . . . . . 10 . 2 Energy Gun 1 | 1 . . . . . . . . . . . . . . . . . . . . . . . . . Energy Cannon 9 | . 1 . 1 . . . . . . . . 1 1 . . . . . . . . . 4 . 1 Ballistic Gun 3 | 1 1 1 . . . . . . . . . . . . . . . . . . . . . . . Ballistic Cannon 2 | . . . . . . . . . . . . . . . . . . . . . . . 1 . 1 Launcher 1 | . . 1 . . . . . . . . . . . . . . . . . . . . . . . Special Weapon 7 | . . . . . . . . . . . . 1 1 . . . . . . . . . 5 . . Impact Weapon . | . . . . . . . . . . . . . . . . . . . . . . . . . . Slashing Weapon . | . . . . . . . . . . . . . . . . . . . . . . . . . . Piercing Weapon . | . . . . . . . . . . . . . . . . . . . . . . . . . . Special Melee Weapon . | . . . . . . . . . . . . . . . . . . . . . . . . . . Unidentified Prototypes 6 | . . . . 1 . . . . . . . 1 . . . . . 1 . . . . 3 . . Parts Lost 4 | . . . . . 1 . . . . . . . . . . . . . . . . . 2 . 1 Power . | . . . . . . . . . . . . . . . . . . . . . . . . . . Propulsion . | . . . . . . . . . . . . . . . . . . . . . . . . . . Utility 4 | . . . . . 1 . . . . . . . . . . . . . . . . . 2 . 1 Weapon . | . . . . . . . . . . . . . . . . . . . . . . . . . . Highest Loss Streak 1 | . . . . . 1 . . . . . . . . . . . . . . . . . 1 . 1 To Critical Strikes . | . . . . . . . . . . . . . . . . . . . . . . . . . . Average Slot Usage (%) 79 | . 95 97 96 88 84 86 89 73 74 76 77 77 78 79 80 80 80 79 80 79 71 72 67 63 66 Engine 2 | . 12 9 9 8 7 6 . . . . . . . . . . . . . . . . . . . Core 1 | . . 6 9 8 7 6 4 . . . . . . . . . . . . . . . . . . Reactor 7 | . . . . . . . 7 13 12 11 10 10 10 10 9 9 9 9 9 9 9 8 8 8 9 Treads 18 | . 22 27 27 25 23 20 20 20 18 22 21 21 21 20 19 19 19 19 19 19 9 11 12 12 11 Device 33 | . 18 24 27 25 25 26 31 26 29 32 35 36 36 39 39 38 38 36 38 37 38 37 35 30 31 Protection 7 | . 11 9 9 13 13 13 12 6 6 5 5 5 5 5 4 4 4 4 4 4 4 8 7 8 5 Energy Cannon 5 | . 8 9 8 8 7 6 6 6 6 5 5 4 4 5 4 4 4 4 4 4 4 4 2 4 2 Ballistic Gun 1 | . 12 7 5 . . . . . . . . . . . . . . . . . . . . . . Naked Turns . | . . . . . . . . . . . . . . . . . . . . . . . . . . Heaviest Build 185 | 7 15 24 40 47 47 44 104 104 111 113 113 113 113 120 120 120 120 122 122 122 120 125 176 172 185 Greatest Support 215 | 20 60 60 60 60 60 60 60 60 60 80 80 80 80 80 80 80 80 80 80 80 140 205 215 215 215 Greatest Overweight (x) 1 | . 1 . . . . . 1 1 1 1 1 1 1 1 1 1 1 1 1 1 1 . . . . Average Overweight (x) . | . . . . . . . . 1 1 1 1 1 1 1 1 1 1 1 1 1 . . . . . Largest Inventory Capacity 6 | 2 2 2 2 2 3 3 3 3 3 3 4 4 4 4 4 4 4 5 5 5 5 5 6 6 6 Average Capacity 3 | 1 2 2 2 2 2 3 3 3 3 3 3 4 4 4 4 4 4 4 5 5 5 5 5 6 6 Most Carried 6 | 2 2 2 2 2 3 3 3 3 3 3 3 4 4 4 3 3 3 5 4 5 5 5 6 6 6 Average Carried 3 | 1 1 2 2 1 2 3 2 3 2 2 3 3 3 3 2 2 3 3 4 4 4 4 5 6 5 Final Capacity 6 | 2 2 2 2 2 3 3 3 3 3 3 4 4 4 4 4 4 4 5 5 5 5 5 6 6 6 Final Carried 6 | 2 2 2 2 2 3 3 3 3 3 3 3 4 4 3 2 3 3 4 4 5 5 5 6 6 6 Class Distribution -------------------- 39% | Scavenger-Mutant 35% | Scavenger-Skirmisher 16% | Mutant 8% | Skirmisher Dominant Class ---------------- Mutant | -10/Materials Mutant | -10/Mines Mutant | -10/Exiles Skirmisher | -9/Mines Skirmisher | -8/Materials Skirmisher | -7/Factory Skirmisher | -7/Waste Scavenger-Skirmisher | -7/Factory Scavenger-Skirmisher | -7/DSF Scavenger-Skirmisher | -6/Factory Scavenger-Mutant | -6/Lower Caves Scavenger-Mutant | -6/Lower Caves Scavenger-Mutant | -6/Data Miner Scavenger-Mutant | -5/Proximity Caves Scavenger-Skirmisher | -5/Factory Scavenger-Mutant | -5/Upper Caves Scavenger-Mutant | -5/Upper Caves Scavenger-Mutant | -5/Zhirov Scavenger-Mutant | -4/Proximity Caves Scavenger-Skirmisher | -4/Factory Scavenger-Skirmisher | -4/DSF Scavenger-Skirmisher | -3/Research Scavenger-Skirmisher | -3/Testing Scavenger-Skirmisher | -2/Research Scavenger-Skirmisher | -1/Access Resources | -11 -10 -10 -10 -9 -8 -7 -7 -7 -7 -6 -6 -6 -6 -5 -5 -5 -5 -5 -4 -4 -4 -3 -3 -2 -1 ----------- Run | Jun Mat Min Exi Min Mat Fac Was Fac DSF Fac Low Low Dat Pro Fac Upp Upp Zhi Pro Fac DSF Res Tes Res Acc Matter Collected 3122 | 254 489 87 23 20 60 . 90 . 30 333 30 20 15 10 30 . . . 30 . 30 70 395 20 1086 Remotely 78 | . . 78 . . . . . . . . . . . . . . . . . . . . . . . Salvage Created 21056 | 11 536 16 . 148 1334 . . . . 808 694 228 114 105 955 544 . . 113 . 923 3310 8710 959 1548 Parts 464 | 4 43 6 . 11 41 . . . . 21 10 4 6 12 18 15 . . 6 . 15 65 125 18 44 Haulers Intercepted 8 | . 1 . . . 2 . . . . . . . . . . . . . . . . 3 . . 2 Recyclers Shooed 5 | . . . . . . . . . . 2 . . . . . . . . . . . 3 . . . Parts Field Recycled . | . . . . . . . . . . . . . . . . . . . . . . . . . . Retrieved Matter . | . . . . . . . . . . . . . . . . . . . . . . . . . . Parts Self-Destructed 35 | . . . . . . . . . . . 9 2 . 10 . 8 . . 6 . . . . . . Prevented . | . . . . . . . . . . . . . . . . . . . . . . . . . . Kills | -11 -10 -10 -10 -9 -8 -7 -7 -7 -7 -6 -6 -6 -6 -5 -5 -5 -5 -5 -4 -4 -4 -3 -3 -2 -1 ------- Run | Jun Mat Min Exi Min Mat Fac Was Fac DSF Fac Low Low Dat Pro Fac Upp Upp Zhi Pro Fac DSF Res Tes Res Acc Combat Hostiles Destroyed 363 | . 15 7 . 9 29 . . . . 10 12 3 4 6 16 15 . . 1 . 8 47 131 12 38 Guns 10 | . 9 1 . . . . . . . . . . . . . . . . . . . . . . . Cannons 61 | . 6 3 . 2 2 . . . . . 2 . . . 2 3 . . . . . 3 5 . 33 AOE 97 | . . 3 . 6 18 . . . . 5 2 1 . 2 6 9 . . . . 3 11 29 2 . Classes Destroyed 28 | 1 5 2 . 1 8 . . . . 3 . 1 . 2 . . . . . . . . 4 . 1 Worker 20 | . 1 . . . 4 . . . . 1 . . . . . . . . . . . 8 . 2 4 Builder 17 | . . . . . . . . . . 2 . . . . 1 . . . . . . 10 . 1 3 Tunneler 1 | 1 . . . . . . . . . . . . . . . . . . . . . . . . . Hauler 8 | . 1 . . . 2 . . . . . . . . . . . . . . . . 3 . . 2 Recycler 4 | . . . . . . . . . . 1 . . . . . . . . . . . 2 . . 1 Carrier 3 | . . . . . 1 . . . . . . . . . . . . . . . . . 2 . . Mechanic 11 | . . . . . 1 . . . . . . . . . . . . . . . . . 10 . . Operator 3 | . 1 . . . 1 . . . . . . . . . 1 . . . . . . . . . . Drone 2 | . . . . . . . . . . . . . . 2 . . . . . . . . . . . Watcher 7 | . . . . . 2 . . . . . . . . . . . . . . . . 4 . . 1 Swarmer 50 | . 6 3 . 7 6 . . . . . 4 . . . . 7 . . . . . 13 . . 4 Saboteur 9 | . . . . . . . . . . . . . . . . . . . . . . . 7 1 1 Grunt 145 | . 9 . . 1 12 . . . . 7 6 . . . 8 4 . . . . 4 14 58 6 16 Brawler 20 | . . . . . 1 . . . . . 1 . . . . 1 . . . . . 1 14 2 . Duelist 17 | . . . . 1 3 . . . . . . . . . . 1 . . . . . 1 11 . . Protector 14 | . . . . . 1 . . . . . . . . . . . . . . . . . 12 1 . Researcher 2 | . . . . . . . . . . . . . . . . . . . . . . . 2 . . Sentry 15 | . . . . . 3 . . . . 1 1 . . . 1 2 . . 1 . . 3 . 1 2 Demolisher 3 | . . 1 . . . . . . . . . . . . . . . . . . . . 2 . . Specialist 5 | . . . . . 2 . . . . . . . . . . . . . . . 3 . . . . Hunter 39 | . . . . . . . . . . 2 . 2 . 3 3 . . . . . . 8 13 . 8 Programmer 24 | . . . . . . . . . . . . 1 . . 4 . . . . . . 4 10 1 4 Heavy 5 | . . . . . 1 . . . . . . . . . . . . . . . 1 1 . . 2 Q-Series 1 | . . . . . . . . . . . . . . . . . . . . . . . . . 1 Behemoth 1 | . . . . . . . . . . . . . . 1 . . . . . . . . . . . Enhanced Grunt 4 | . . . . . . . . . . . . . 4 . . . . . . . . . . . . Tracker 1 | . . . . . . . . . . . . . . . . . . . . . . 1 . . . Combat Programmer 1 | . . . . . . . . . . . . . . . . . . . . . . 1 . . . Investigator 2 | . . . . . . . . . . . . . . . . . . . . . . . 2 . . Striker 2 | . . . . . . . . . . . . . . . . . . . . . . . 2 . . Superbehemoth 1 | . . . . . . . . . . . . . . . . . . . . . . . 1 . . Alpha 7 1 | . . . . . . . . . . . . . . . . . . . . . . . 1 . . Decomposer 1 | . . . . . . . . . . . . . . . . 1 . . . . . . . . . Assembled 3 | . . 3 . . . . . . . . . . . . . . . . . . . . . . . Surgeon 1 | . . . . . . . . . . . . 1 . . . . . . . . . . . . . Wasp 4 | . . . . . . . . . . . . . . . . . . . . . . 4 . . . Thug 1 | . . . . . . . . . . . 1 . . . . . . . . . . . . . . Savage 1 | . . . . . . . . . . . . . . . . . . . . . . . . 1 . Best Kill Streak 43 | 1 4 3 . 4 11 . . . . 3 4 1 4 3 6 7 . . 1 . 4 16 43 9 18 Combat Bots Only 40 | . 4 3 . 4 9 . . . . 2 4 1 4 3 5 7 . . 1 . 4 12 40 6 13 Max Kills in Single Turn 6 | 1 2 2 . 4 5 . . . . 2 3 1 1 2 2 3 . . 1 . 1 6 6 3 2 Gunslinging 1 | . 1 . . . . . . . . . . . . . . . . . . . . . . . . Exploded 4 | . . 2 . 2 4 . . . . 2 2 1 . 1 1 3 . . . . 1 2 3 1 . Melee . | . . . . . . . . . . . . . . . . . . . . . . . . . . Uniques/NPCs Destroyed . | . . . . . . . . . . . . . . . . . . . . . . . . . . Combat | -11 -10 -10 -10 -9 -8 -7 -7 -7 -7 -6 -6 -6 -6 -5 -5 -5 -5 -5 -4 -4 -4 -3 -3 -2 -1 -------- Run | Jun Mat Min Exi Min Mat Fac Was Fac DSF Fac Low Low Dat Pro Fac Upp Upp Zhi Pro Fac DSF Res Tes Res Acc Damage Taken 11848 | . 502 232 . 68 587 . . . . 565 220 205 42 453 483 220 . . 64 . 221 903 2882 319 3882 Core 6366 | . 359 149 . 54 389 . . . . 273 123 108 16 243 265 113 . . 38 . 100 349 1320 236 2231 Absorbed by Shields 5556 | . . . . . . . . . . . . . . 105 338 180 . . 65 . 88 343 1017 315 3105 Reduced by Siege Mode 126 | . . . . . . . . . . . . . . . . . . . . . . . 56 . 70 Redirected to Core 5630 | . 307 128 . 36 324 . . . . 273 123 108 16 221 168 105 . . 38 . 100 323 1214 60 2086 Redirected to Shielding 457 | . . . . . . . . . . . . . . . . . . . . . . 176 281 . . Regen/Repaired (Parts) 60 | . 35 . . . . . 9 . . 16 . . . . . . . . . . . . . . . Core Remaining (%) 96 | 100 . . . 74 100 . . . 100 . . . . 100 . . . . 94 . 97 . 100 100 . Volleys Fired 471 | 7 50 8 . 5 24 . . . . 15 15 8 5 10 17 12 . . 2 . 12 53 97 11 120 Largest 2 | 2 2 2 . 1 1 . . . . 1 1 1 1 1 1 1 . . 1 . 1 1 1 1 2 Hottest 250 | 60 80 80 . 250 250 . . . . 250 250 250 250 250 250 250 . . 250 . 250 250 250 250 250 Shots Fired 551 | 14 99 12 . 5 24 . . . . 15 15 8 5 10 17 12 . . 2 . 12 53 97 11 140 Gun 93 | 14 75 4 . . . . . . . . . . . . . . . . . . . . . . . Cannon 432 | . 24 4 . 5 24 . . . . 15 15 8 5 10 17 12 . . 2 . 12 53 75 11 140 Launcher 4 | . . 4 . . . . . . . . . . . . . . . . . . . . . . . Special 22 | . . . . . . . . . . . . . . . . . . . . . . . 22 . . Kinetic 127 | 7 50 4 . . . . . . . . . . . . . . . . . . . . . . 66 Thermal 398 | 7 49 4 . 5 24 . . . . 15 15 8 5 10 17 12 . . 2 . 12 53 75 11 74 Explosive 4 | . . 4 . . . . . . . . . . . . . . . . . . . . . . . Electromagnetic . | . . . . . . . . . . . . . . . . . . . . . . . . . . Robot Hit Streak 30 | 2 11 11 . 8 11 . . . . 6 9 8 10 4 13 14 . . 5 . 9 9 30 10 29 Robot Miss Streak 7 | 2 4 1 . 4 5 . . . . 6 2 4 2 4 4 5 . . 1 . 3 7 2 6 3 Penetration Max . | . . . . . . . . . . . . . . . . . . . . . . . . . . Secondary Targets 2 | . 2 . . . . . . . . . . . . . . . . . . . . . . . . Max Gunslinging Chain 1 | . 1 . . . . . . . . . . . . . . . . . . . . . . . . Shots Hit Robots 420 | 7 58 6 . 4 24 . . . . 13 13 5 5 9 13 11 . . 2 . 12 46 70 7 115 Core Hits 903 | 1 25 10 . 9 60 . . . . 41 28 11 16 7 31 25 . . 1 . 35 150 364 45 44 Critical Kills 4 | . . . . . . . . . . . . . . . . . . . . . . . . . 4 Critical Parts Destroyed . | . . . . . . . . . . . . . . . . . . . . . . . . . . Critical Strikes 12 | . . . . . . . . . . . . . . . . . . . . . . . . . 12 Meltdown 4 | . . . . . . . . . . . . . . . . . . . . . . . . . 4 Blast 8 | . . . . . . . . . . . . . . . . . . . . . . . . . 8 Melee Attacks . | . . . . . . . . . . . . . . . . . . . . . . . . . . Impact . | . . . . . . . . . . . . . . . . . . . . . . . . . . Slashing . | . . . . . . . . . . . . . . . . . . . . . . . . . . Piercing . | . . . . . . . . . . . . . . . . . . . . . . . . . . Sneak Attacks . | . . . . . . . . . . . . . . . . . . . . . . . . . . Combat Hostiles . | . . . . . . . . . . . . . . . . . . . . . . . . . . Follow-up Attacks . | . . . . . . . . . . . . . . . . . . . . . . . . . . Damage Inflicted 43976 | 86 798 291 . 365 2412 . . . . 1291 936 394 398 456 1595 1165 . . 72 . 1217 5815 13210 1362 12113 Guns 626 | 86 529 11 . . . . . . . . . . . . . . . . . . . . . . . Cannons 17985 | . 269 73 . 136 354 . . . . 311 139 71 39 96 514 293 . . 25 . 174 1041 2197 343 11910 Explosions 25305 | . . 203 . 229 2034 . . . . 980 797 323 341 360 1081 872 . . 47 . 1043 4772 11013 1019 191 Melee . | . . . . . . . . . . . . . . . . . . . . . . . . . . Ramming 60 | . . 4 . . 24 . . . . . . . 18 . . . . . . . . 2 . . 12 Kinetic 6127 | 52 355 11 . . . . . . . . . . . . . . . . . . . . . . 5709 Thermal 36717 | 34 443 73 . 365 2343 . . . . 1291 936 394 380 456 1595 1165 . . 72 . 1217 5813 12485 1362 6293 Explosive 1027 | . . 203 . . . . . . . . . . . . . . . . . . . . 725 . 99 Electromagnetic 45 | . . . . . 45 . . . . . . . . . . . . . . . . . . . . Impact . | . . . . . . . . . . . . . . . . . . . . . . . . . . Slashing . | . . . . . . . . . . . . . . . . . . . . . . . . . . Piercing . | . . . . . . . . . . . . . . . . . . . . . . . . . . Highest Corruption 7 | . . . . . . . . . . . . . . . . . . . . . . . 2 . 7 Average Corruption 2 | . . . . . . . . . . . . . . . . . . . . . . . 1 . 5 Corruption Purged . | . . . . . . . . . . . . . . . . . . . . . . . . . . Corruption Blocked . | . . . . . . . . . . . . . . . . . . . . . . . . . . Effects 14 | . . . . . . . . . . . . . . . . . . . . . . . 8 . 6 Message Errors 2 | . . . . . . . . . . . . . . . . . . . . . . . 2 . . Matter Fused 5 | . . . . . . . . . . . . . . . . . . . . . . . 4 . 1 Energy Discharges 1 | . . . . . . . . . . . . . . . . . . . . . . . 1 . . Parts Fused 1 | . . . . . . . . . . . . . . . . . . . . . . . . . 1 Data Loss (minor) 3 | . . . . . . . . . . . . . . . . . . . . . . . 1 . 2 Weapon Failures 2 | . . . . . . . . . . . . . . . . . . . . . . . . . 2 Overload Shots . | . . . . . . . . . . . . . . . . . . . . . . . . . . Overflow Damage 1515 | . . . . . 36 . . . . . 3 4 . . 101 25 . . . . . 59 202 . 1085 Projectiles 1154 | . . . . . 13 . . . . . . . . . 15 11 . . . . . 19 11 . 1085 Explosions 361 | . . . . . 23 . . . . . 3 4 . . 86 14 . . . . . 40 191 . . Melee . | . . . . . . . . . . . . . . . . . . . . . . . . . . Knockbacks 11 | . . . . . 1 . . . . . . . . . . . . . . . . . . . 10 Impact 1 | . . . . . 1 . . . . . . . . . . . . . . . . . . . . Kinetic 9 | . . . . . . . . . . . . . . . . . . . . . . . . . 9 Secondary 1 | . . . . . . . . . . . . . . . . . . . . . . . . . 1 Self-Inflicted Damage 1570 | . . 40 . 30 147 . . . . 30 69 5 . 32 197 162 . . 34 . 5 304 485 16 14 Shots 161 | . . 1 . 5 13 . . . . 2 8 1 . 4 23 16 . . 2 . 1 28 53 3 1 Rammed 10 | . . 1 . . 6 . . . . . . . 1 . . . . . . . . 1 . . 1 Targets Rammed 10 | . . 1 . . 6 . . . . . . . 1 . . . . . . . . 1 . . 1 Kicked . | . . . . . . . . . . . . . . . . . . . . . . . . . . Crushed . | . . . . . . . . . . . . . . . . . . . . . . . . . . Highest Temperature 1375 | . 297 . . 380 308 . . . . 702 197 158 162 177 398 176 . . 96 . 361 414 1375 959 551 Average Temperature 141 | . 68 . . 153 122 . . . . 197 100 65 82 107 110 81 . . 55 . 157 104 237 475 39 Received Heat Transfer 1481 | . 195 20 . . 99 . . . . 120 63 . . 42 58 51 . . 8 . 79 18 525 41 162 Effects 34 | . 3 . . 2 1 . . . . 4 . . . . . . . . . . . . 19 4 1 Energy Bleed 5 | . . . . 1 . . . . . . . . . . . . . . . . . . 2 2 . Interference 12 | . 3 . . 1 1 . . . . . . . . . . . . . . . . . 7 . . Matter Decay 2 | . . . . . . . . . . 1 . . . . . . . . . . . . 1 . . Short Circuit 4 | . . . . . . . . . . 1 . . . . . . . . . . . . 2 . 1 Damage (minor) 3 | . . . . . . . . . . . . . . . . . . . . . . . 3 . . Damage (major) 5 | . . . . . . . . . . 2 . . . . . . . . . . . . 3 . . Damage (core) 3 | . . . . . . . . . . . . . . . . . . . . . . . 1 2 . Siege Activations 13 | . . . . . . . . . . . . . . . . . . . . . . 1 5 . 7 Total Turns 291 | . . . . . . . . . . . . . . . . . . . . . . 1 178 . 112 Longest Duration 60 | . . . . . . . . . . . . . . . . . . . . . . 1 60 . 44 Robots Corrupted . | . . . . . . . . . . . . . . . . . . . . . . . . . . Combat Hostiles . | . . . . . . . . . . . . . . . . . . . . . . . . . . Parts Fried . | . . . . . . . . . . . . . . . . . . . . . . . . . . Impact Corruptions 1 | . . . . . . . . . . . . . . . . . . . . . . . . . 1 Robots Melted 222 | . . . . 1 11 . . . . 5 9 2 4 4 8 3 . . 1 . 6 44 109 10 5 Combat Hostiles 194 | . . . . 1 9 . . . . 5 8 2 4 4 8 3 . . 1 . 5 33 96 10 5 Parts Melted 866 | . . . . 10 67 . . . . 27 23 9 18 15 38 13 . . . . 30 181 390 37 8 Heat Transferred 164123 | 75 955 148 . 1600 11960 . . . . 7120 5920 1920 2800 2240 6820 5280 . . 320 . 7120 31040 67737 7284 3784 Parts Sabotaged . | . . . . . . . . . . . . . . . . . . . . . . . . . . Parts Stolen . | . . . . . . . . . . . . . . . . . . . . . . . . . . Parts Stripped . | . . . . . . . . . . . . . . . . . . . . . . . . . . Power Chain Reactions . | . . . . . . . . . . . . . . . . . . . . . . . . . . Missiles Intercepted 2 | . . . . . . . . . . . . . . . . . . . . . . . 2 . . Alert | -11 -10 -10 -10 -9 -8 -7 -7 -7 -7 -6 -6 -6 -6 -5 -5 -5 -5 -5 -4 -4 -4 -3 -3 -2 -1 ------- Run | Jun Mat Min Exi Min Mat Fac Was Fac DSF Fac Low Low Dat Pro Fac Upp Upp Zhi Pro Fac DSF Res Tes Res Acc Peak Influence 4896 | 5 376 133 . 247 1060 482 168 5 460 932 . . . . 704 . . . . . 195 1080 4896 3041 2732 Initial 2748 | . . 63 . . 96 482 168 . 3 229 . . . . 452 . . . . . . 109 607 2748 1824 Average 1163 | 1 204 80 . 134 593 482 117 . 261 590 . . . . 491 . . . . . 115 549 4193 2795 2222 Maximum Alert Level 5 | . 1 . . 1 3 2 . . 2 3 . . . . 3 . . . . . . 3 5 5 5 Low Security (%) 36 | 100 46 100 . 90 22 . 100 100 45 . . . . . . . . . . 100 100 21 . . . Level 1 13 | . 53 . . 9 5 . . . 17 22 . . . . 25 . . . . . . 22 . . . Level 2 12 | . . . . . 31 100 . . 37 42 . . . . 70 . . . . . . 12 . . . Level 3 11 | . . . . . 40 . . . . 35 . . . . 4 . . . . . . 42 . . . Level 4 . | . . . . . . . . . . . . . . . . . . . . . . . . . . Level 5 8 | . . . . . . . . . . . . . . . . . . . . . . . . 84 100 High Security . | . . . . . . . . . . . . . . . . . . . . . . . . 15 . Max Security 16 | . . . . . . . . . . . . . . . . . . . . . . . 99 . . Sterilizations 3 | . . . . . . . . . 1 . . . . . . . . . . . 1 . 1 . . Squads Dispatched 86 | . 6 1 . . 5 . . 1 2 4 . . . . 5 . . . . . 2 12 32 4 12 Investigation 14 | . 5 1 . . 1 . . 1 . 2 . . . . 1 . . . . . . . . 1 2 Extermination 5 | . . . . . . . . . . . . . . . 2 . . . . . . 2 . . 1 Reinforcement 21 | . 1 . . . 2 . . . 2 . . . . . 2 . . . . . 2 5 2 1 4 Assault 38 | . . . . . 2 . . . . 1 . . . . . . . . . . . . 30 2 3 Garrison 6 | . . . . . . . . . . 1 . . . . . . . . . . . 3 . . 2 Intercept 2 | . . . . . . . . . . . . . . . . . . . . . . 2 . . . Searches Triggered 1 | . . . . . . . . . . . . . . . 1 . . . . . . . . . . Construction Impeded 5 | . . . . . . . . . . . . . . . 1 . . . . . . 2 1 1 . Haulers Reinforced 3 | . . . . . . . . . . . . . . . . . . . . . . 2 . . 1 Active Scanning Responses . | . . . . . . . . . . . . . . . . . . . . . . . . . . Cargo Convoy Interrupts . | . . . . . . . . . . . . . . . . . . . . . . . . . . Stealth | -11 -10 -10 -10 -9 -8 -7 -7 -7 -7 -6 -6 -6 -6 -5 -5 -5 -5 -5 -4 -4 -4 -3 -3 -2 -1 --------- Run | Jun Mat Min Exi Min Mat Fac Was Fac DSF Fac Low Low Dat Pro Fac Upp Upp Zhi Pro Fac DSF Res Tes Res Acc Distress Signals 17 | . 4 . . . 3 . . . . . . . . . 1 . . . . . . 4 . 1 4 Communications Jammed . | . . . . . . . . . . . . . . . . . . . . . . . . . . Distress Signals . | . . . . . . . . . . . . . . . . . . . . . . . . . . Times Spotted 460 | . 27 10 . 9 39 . . . 9 17 13 3 3 9 19 15 . . 1 . 9 49 149 17 62 Peak Tracking Total 24 | . 5 3 . 4 9 . . . 3 4 4 1 3 3 5 7 . . 1 . 3 14 24 6 12 Tactical Retreats 10 | . 2 . . . 2 . . . . . 1 . . . . . . . . . . . 4 . 1 Traps | -11 -10 -10 -10 -9 -8 -7 -7 -7 -7 -6 -6 -6 -6 -5 -5 -5 -5 -5 -4 -4 -4 -3 -3 -2 -1 ------- Run | Jun Mat Min Exi Min Mat Fac Was Fac DSF Fac Low Low Dat Pro Fac Upp Upp Zhi Pro Fac DSF Res Tes Res Acc Traps Triggered 10 | . 2 . . . . 1 . . . . . . . . 1 . . . . . 1 3 . 1 1 Indirectly . | . . . . . . . . . . . . . . . . . . . . . . . . . . Trap Hack Attempts . | . . . . . . . . . . . . . . . . . . . . . . . . . . Triggered . | . . . . . . . . . . . . . . . . . . . . . . . . . . Disarmed . | . . . . . . . . . . . . . . . . . . . . . . . . . . Reprogrammed . | . . . . . . . . . . . . . . . . . . . . . . . . . . Reused . | . . . . . . . . . . . . . . . . . . . . . . . . . . Traps Extracted . | . . . . . . . . . . . . . . . . . . . . . . . . . . Installed . | . . . . . . . . . . . . . . . . . . . . . . . . . . Triggered 1 | . . . . . 1 . . . . . . . . . . . . . . . . . . . . Machines | -11 -10 -10 -10 -9 -8 -7 -7 -7 -7 -6 -6 -6 -6 -5 -5 -5 -5 -5 -4 -4 -4 -3 -3 -2 -1 ---------- Run | Jun Mat Min Exi Min Mat Fac Was Fac DSF Fac Low Low Dat Pro Fac Upp Upp Zhi Pro Fac DSF Res Tes Res Acc Machines Disabled 25 | . 2 . . . 8 . . . . 2 . 2 . . 3 . . . . . . . 6 . 2 Max in Single Turn 2 | . 1 . . . 2 . . . . 1 . 2 . . 2 . . . . . . . 2 . 1 Garrison Access 3 | . . . . . . . . 1 . 1 . . . . 1 . . . . . . . . . . Energy Cycler 1 | . . . . . . . . . . . . . . . . . . . . . . . . . 1 Machines Repaired . | . . . . . . . . . . . . . . . . . . . . . . . . . . Machines Sabotaged . | . . . . . . . . . . . . . . . . . . . . . . . . . . Overloaded Fab Kills . | . . . . . . . . . . . . . . . . . . . . . . . . . . Hacking | -11 -10 -10 -10 -9 -8 -7 -7 -7 -7 -6 -6 -6 -6 -5 -5 -5 -5 -5 -4 -4 -4 -3 -3 -2 -1 --------- Run | Jun Mat Min Exi Min Mat Fac Was Fac DSF Fac Low Low Dat Pro Fac Upp Upp Zhi Pro Fac DSF Res Tes Res Acc Machines Accessed 49 | . 9 1 2 . 4 . . 2 . 2 1 . 4 . 5 . . 6 1 1 . 8 . 2 1 Terminals 24 | . 6 . . . 4 . . 1 . 2 . . . . 2 . . . 1 1 . 5 . 2 . Fabricators 4 | . . . . . . . . . . . . . . . 2 . . . . . . 1 . . 1 Repair Stations 1 | . 1 . . . . . . . . . . . . . . . . . . . . . . . . Recycling Units 2 | . 2 . . . . . . . . . . . . . . . . . . . . . . . . Scanalyzers 2 | . . . . . . . . . . . . . . . . . . . . . . 2 . . . Garrison Access 2 | . . . . . . . . 1 . . . . . . 1 . . . . . . . . . . Total Hacks 161 | . 35 1 5 . 21 . . 4 . 8 1 . 29 . 11 . . 20 1 2 . 16 . 4 3 Successful 103 | . 20 1 5 . 8 . . 2 . . 1 . 29 . 4 . . 20 1 1 . 8 . 2 1 Failed 57 | . 14 . . . 13 . . 2 . 8 . . . . 7 . . . . 1 . 8 . 2 2 Catastrophic 13 | . . . . . 3 . . . . . . . . . 5 . . . . . . 5 . . . Database Lockouts 1 | . 1 . . . . . . . . . . . . . . . . . . . . . . . . Manual 39 | . 13 . 1 . 13 . . . . 3 . 1 . . 5 . . . . . . 1 . 2 . Terminals 75 | . 23 . . . 21 . . 3 . 8 . . . . 6 . . . 1 2 . 7 . 4 . Fabricators 7 | . . . . . . . . . . . . . . . 3 . . . . . . 1 . . 3 Repair Stations 3 | . 3 . . . . . . . . . . . . . . . . . . . . . . . . Recycling Units 9 | . 9 . . . . . . . . . . . . . . . . . . . . . . . . Scanalyzers 8 | . . . . . . . . . . . . . . . . . . . . . . 8 . . . Garrison Access 3 | . . . . . . . . 1 . . . . . . 2 . . . . . . . . . . Terminal Hacks 75 | . 8 1 5 . 4 . . 1 . . 1 . 29 . 1 . . 20 1 1 . 2 . 1 . Record 28 | . . . 4 . . . . . . . . . 11 . . . . 12 1 . . . . . . Part Schematic 15 | . . . . . . . . . . . . . 11 . . . . 4 . . . . . . . Robot Schematic 4 | . . . . . . . . . . . . . 4 . . . . . . . . . . . . Robot Analysis 3 | . 3 . . . . . . . . . . . . . . . . . . . . . . . . Prototype ID Bank 10 | . 1 . . . 2 . . . . . . . 3 . . . . 4 . . . . . . . Open Door 2 | . . 1 . . . . . . . . 1 . . . . . . . . . . . . . . Open DSF 5 | . . . . . . . . 1 . . . . . . . . . . . 1 . 2 . 1 . Branch Access Points 2 | . 1 . . . . . . . . . . . . . 1 . . . . . . . . . . Unreport Threat 1 | . 1 . . . . . . . . . . . . . . . . . . . . . . . . Locate Traps 1 | . . . . . 1 . . . . . . . . . . . . . . . . . . . . Dispatch Records 1 | . 1 . . . . . . . . . . . . . . . . . . . . . . . . Hauler Manifests 2 | . 1 . . . 1 . . . . . . . . . . . . . . . . . . . . EX-Prototype ID Bank 1 | . . . 1 . . . . . . . . . . . . . . . . . . . . . . Fabricator Hacks 3 | . . . . . . . . . . . . . . . 2 . . . . . . . . . 1 Load Schematic 2 | . . . . . . . . . . . . . . . 1 . . . . . . . . . 1 Build 1 | . . . . . . . . . . . . . . . 1 . . . . . . . . . . Repair Station Hacks 2 | . 2 . . . . . . . . . . . . . . . . . . . . . . . . Scan Component 1 | . 1 . . . . . . . . . . . . . . . . . . . . . . . . Repair 1 | . 1 . . . . . . . . . . . . . . . . . . . . . . . . Recycling Unit Hacks 6 | . 6 . . . . . . . . . . . . . . . . . . . . . . . . Process 1 | . 1 . . . . . . . . . . . . . . . . . . . . . . . . Report Inventory 2 | . 2 . . . . . . . . . . . . . . . . . . . . . . . . Retrieve Matter 2 | . 2 . . . . . . . . . . . . . . . . . . . . . . . . Retrieve Components 1 | . 1 . . . . . . . . . . . . . . . . . . . . . . . . Scanalyzer 6 | . . . . . . . . . . . . . . . . . . . . . . 6 . . . Insert Component 3 | . . . . . . . . . . . . . . . . . . . . . . 3 . . . Analyze 3 | . . . . . . . . . . . . . . . . . . . . . . 3 . . . Garrison Access Hacks 2 | . . . . . . . . 1 . . . . . . 1 . . . . . . . . . . Seal Access 2 | . . . . . . . . 1 . . . . . . 1 . . . . . . . . . . Unauthorized Hacks 9 | . 4 . . . 4 . . . . . . . . . . . . . . . . . . 1 . Terminals 7 | . 2 . . . 4 . . . . . . . . . . . . . . . . . . 1 . Track 5 | . 2 . . . 3 . . . . . . . . . . . . . . . . . . . . Botnet 2 | . . . . . 1 . . . . . . . . . . . . . . . . . . 1 . Fabricators . | . . . . . . . . . . . . . . . . . . . . . . . . . . Repair Stations . | . . . . . . . . . . . . . . . . . . . . . . . . . . Recycling Units 2 | . 2 . . . . . . . . . . . . . . . . . . . . . . . . Tunnel 2 | . 2 . . . . . . . . . . . . . . . . . . . . . . . . Scanalyzers . | . . . . . . . . . . . . . . . . . . . . . . . . . . Garrison Access . | . . . . . . . . . . . . . . . . . . . . . . . . . . Data Cores Recovered . | . . . . . . . . . . . . . . . . . . . . . . . . . . Used . | . . . . . . . . . . . . . . . . . . . . . . . . . . Hacking Detections 24 | . 6 . . . 4 . . 1 . 2 . . . . 4 . . . . . . 5 . 1 1 Full Trace Events 13 | . 6 . . . 1 . . 1 . 2 . . . . 1 . . . . . . . . 1 1 Feedback Events . | . . . . . . . . . . . . . . . . . . . . . . . . . . Feedback Blocked . | . . . . . . . . . . . . . . . . . . . . . . . . . . Robot Schematics Acquired 4 | . . . . . . . . . . . . . 4 . . . . . . . . . . . . Robots Built 3 | . . . . . . . . . . . . . . . 3 . . . . . . . . . . Authchips 1 | . . . . . . . . . . . . . . . 1 . . . . . . . . . . Time 134 | . . . . . . . . . . . . . . . 134 . . . . . . . . . . Total Robot Build Rating 12 | . . . . . . . . . . . . . . . 12 . . . . . . . . . . Part Schematics Acquired 17 | . . . . . . . . . . . . . 11 . . . . 4 . . . 2 . . . Parts Built . | . . . . . . . . . . . . . . . . . . . . . . . . . . Authchips . | . . . . . . . . . . . . . . . . . . . . . . . . . . Time . | . . . . . . . . . . . . . . . . . . . . . . . . . . Total Part Build Rating . | . . . . . . . . . . . . . . . . . . . . . . . . . . Parts Repaired 1 | . 1 . . . . . . . . . . . . . . . . . . . . . . . . Time 26 | . 26 . . . . . . . . . . . . . . . . . . . . . . . . Parts Recycled . | . . . . . . . . . . . . . . . . . . . . . . . . . . Recycled Matter 18 | . 18 . . . . . . . . . . . . . . . . . . . . . . . . Retrieved Matter 18 | . 18 . . . . . . . . . . . . . . . . . . . . . . . . Retrieved Components 1 | . 1 . . . . . . . . . . . . . . . . . . . . . . . . Parts Scanalyzed 2 | . . . . . . . . . . . . . . . . . . . . . . 2 . . . Part Schematics Acquired 2 | . . . . . . . . . . . . . . . . . . . . . . 2 . . . Parts Damaged . | . . . . . . . . . . . . . . . . . . . . . . . . . . Bothacking | -11 -10 -10 -10 -9 -8 -7 -7 -7 -7 -6 -6 -6 -6 -5 -5 -5 -5 -5 -4 -4 -4 -3 -3 -2 -1 ------------ Run | Jun Mat Min Exi Min Mat Fac Was Fac DSF Fac Low Low Dat Pro Fac Upp Upp Zhi Pro Fac DSF Res Tes Res Acc Used RIF Installer . | . . . . . . . . . . . . . . . . . . . . . . . . . . Robots Hacked . | . . . . . . . . . . . . . . . . . . . . . . . . . . Non-combat . | . . . . . . . . . . . . . . . . . . . . . . . . . . Combat . | . . . . . . . . . . . . . . . . . . . . . . . . . . Robot Hacks Applied . | . . . . . . . . . . . . . . . . . . . . . . . . . . Relay Couplers Released 2 | . . . . . . . . . . 2 . . . . . . . . . . . . . . . Machine Destruction 2 | . . . . . . . . . . 2 . . . . . . . . . . . . . . . Fabnet Peak Effective % . | . . . . . . . . . . . . . . . . . . . . . . . . . . Robots Rewired 2 | . . . . . . . . . . . . . . . . . . . . . . . 2 . . Allies Hacked 2 | . . . . . . . . . . . . 1 . . . . . . . . . . 1 . . Hacks Repelled . | . . . . . . . . . . . . . . . . . . . . . . . . . . Allies | -11 -10 -10 -10 -9 -8 -7 -7 -7 -7 -6 -6 -6 -6 -5 -5 -5 -5 -5 -4 -4 -4 -3 -3 -2 -1 -------- Run | Jun Mat Min Exi Min Mat Fac Was Fac DSF Fac Low Low Dat Pro Fac Upp Upp Zhi Pro Fac DSF Res Tes Res Acc Total Allies 25 | . . . . . . . 20 . . . . . . . 3 . . . . . . . 2 . . Largest Group 20 | . . . . . . . 20 20 20 11 4 3 . . 3 . . . . . . . 2 . . Highest-Rated Group 492 | . . . . . . . 492 492 492 310 112 81 . . 60 . . . . . . . 180 . . Highest-Rated Ally 90 | . . . . . . . 35 35 35 35 31 27 . . 20 . . . . . . . 90 . . Warlord Squad Rendezvous 5 | . . . . . . . . . . . . . . . . . . . . . . 3 . 2 . Dakka 1 | . . . . . . . . . . . . . . . . . . . . . . 1 . . . Infantry 2 | . . . . . . . . . . . . . . . . . . . . . . 1 . 1 . Muscle 1 | . . . . . . . . . . . . . . . . . . . . . . . . 1 . Chimera 1 | . . . . . . . . . . . . . . . . . . . . . . 1 . . . Total Orders . | . . . . . . . . . . . . . . . . . . . . . . . . . . Ally Attacks 173 | . . . . . . . . . 99 49 2 . . . 6 . . . . . . . 17 . . Total Damage 5004 | . . . . . . . . . 2350 1819 41 . . . 137 . . . . . . . 657 . . Kills 37 | . . . . . . . . . 13 17 . . . . . . . . . . . . 7 . . Allies Corrupted 3 | . . . . . . . . . . 1 . 1 . . 1 . . . . . . . . . . Allies Melted 2 | . . . . . . . . . 1 . 1 . . . . . . . . . . . . . . Intel | -11 -10 -10 -10 -9 -8 -7 -7 -7 -7 -6 -6 -6 -6 -5 -5 -5 -5 -5 -4 -4 -4 -3 -3 -2 -1 ------- Run | Jun Mat Min Exi Min Mat Fac Was Fac DSF Fac Low Low Dat Pro Fac Upp Upp Zhi Pro Fac DSF Res Tes Res Acc Robot Analysis Total 134 | . 3 . . . . . . . . . . . 131 . . . . . . . . . . . . Derelict Logs Recovered 6 | . . 1 . 2 . . . . . . 1 1 . . . . 1 . . . . . . . . Drone Launches . | . . . . . . . . . . . . . . . . . . . . . . . . . . Drone Recoveries . | . . . . . . . . . . . . . . . . . . . . . . . . . . Exploration | -11 -10 -10 -10 -9 -8 -7 -7 -7 -7 -6 -6 -6 -6 -5 -5 -5 -5 -5 -4 -4 -4 -3 -3 -2 -1 ------------- Run | Jun Mat Min Exi Min Mat Fac Was Fac DSF Fac Low Low Dat Pro Fac Upp Upp Zhi Pro Fac DSF Res Tes Res Acc Turns Passed 17734 | 933 1185 673 507 344 746 67 572 82 181 773 1361 1101 354 713 683 871 1013 559 492 103 187 1455 1816 390 573 Spaces Moved 7497 | 65 723 389 316 197 347 40 247 33 66 275 525 425 127 272 247 330 406 219 196 41 84 793 784 174 176 Core 6 | 6 . . . . . . . . . . . . . . . . . . . . . . . . . Treads 7174 | 5 460 389 316 197 347 40 247 33 66 275 525 425 127 272 247 330 406 219 196 41 84 793 784 174 176 Legs . | . . . . . . . . . . . . . . . . . . . . . . . . . . Wheels 317 | 54 263 . . . . . . . . . . . . . . . . . . . . . . . . Hover . | . . . . . . . . . . . . . . . . . . . . . . . . . . Flight . | . . . . . . . . . . . . . . . . . . . . . . . . . . Fastest Speed 50 | 50 80 160 160 160 160 170 170 250 250 250 250 250 250 250 250 250 250 250 250 250 160 150 165 170 170 Average Speed 197 | 83 131 160 160 160 166 170 222 250 250 250 250 250 250 250 250 250 250 250 250 250 166 158 166 170 170 Slowest Speed 250 | 160 160 160 160 160 170 170 250 250 250 250 250 250 250 250 250 250 250 250 250 250 250 165 170 170 170 Overloaded Moves . | . . . . . . . . . . . . . . . . . . . . . . . . . . Propulsion Burnouts . | . . . . . . . . . . . . . . . . . . . . . . . . . . Robots Hopped . | . . . . . . . . . . . . . . . . . . . . . . . . . . Cave-ins Triggered . | . . . . . . . . . . . . . . . . . . . . . . . . . . Teleports 1 | . . . . . . . . . . . . . . . . . . . . . . . . . 1 Exploration Rate (%) 47 | 5 88 63 70 64 41 3 91 2 86 13 72 64 78 49 9 58 62 62 45 1 84 32 79 6 9 Regions Visited 25 Branch Regions 12 Pre-discovered Areas 36 | . 2 . 1 1 . . . . . . 1 . 30 . . . 1 . . . . . . . . Known Exits Taken 5 | . 1 . . . 1 . . 1 . . . . . . 1 . . . . 1 . . . . . Unknown Exits Taken 16 | 1 . 1 1 1 . . . . . 1 1 1 1 1 . 1 1 1 1 . . 1 1 1 . Scrap Searched 10 | . . 1 . 1 . . . . . . 2 2 . . . 2 2 . . . . . . . . Spaces Dug . | . . . . . . . . . . . . . . . . . . . . . . . . . . Terrain Destroyed 391 | . . 37 . 28 192 . . . . 8 . . . 2 33 2 . . . . 8 . 59 . 22 Melee . | . . . . . . . . . . . . . . . . . . . . . . . . . . Projectile 25 | . . . . 1 6 . . . . 1 . . . 1 . . . . . . 1 . . . 15 AOE 366 | . . 37 . 27 186 . . . . 7 . . . 1 33 2 . . . . 7 . 59 . 7 Terrain Rammed . | . . . . . . . . . . . . . . . . . . . . . . . . . . Walls Destroyed . | . . . . . . . . . . . . . . . . . . . . . . . . . . Machines Disabled . | . . . . . . . . . . . . . . . . . . . . . . . . . . Actions | -11 -10 -10 -10 -9 -8 -7 -7 -7 -7 -6 -6 -6 -6 -5 -5 -5 -5 -5 -4 -4 -4 -3 -3 -2 -1 --------- Run | Jun Mat Min Exi Min Mat Fac Was Fac DSF Fac Low Low Dat Pro Fac Upp Upp Zhi Pro Fac DSF Res Tes Res Acc Total 9920 | 926 862 425 318 221 487 40 275 34 83 347 559 458 158 296 296 365 405 232 197 43 121 941 1206 262 363 Wait 1312 | 847 55 20 . 9 56 . 2 2 4 21 9 9 5 1 15 1 . . . . 8 17 161 31 39 Move 7473 | 64 722 388 315 196 346 40 246 32 65 274 524 424 126 271 246 329 405 218 195 40 83 792 783 173 176 Hop . | . . . . . . . . . . . . . . . . . . . . . . . . . . Pick Up 50 | 2 3 . . 1 3 . 2 . 1 3 . 3 1 . . 1 . 3 . 1 1 2 17 . 6 Fast Attach 53 | 6 5 3 1 2 2 . 6 . 1 . 3 1 1 . 2 . . . . 1 2 5 9 1 2 Attach 21 | . . . . . 1 . . . . 2 . 1 1 1 1 . . 1 . . . 1 9 . 3 Detach . | . . . . . . . . . . . . . . . . . . . . . . . . . . Swap 22 | . 3 2 . . 5 . 3 . . . . . . . . . . 2 . . . 1 6 . . Drop 88 | . 6 1 2 2 5 . 13 . 1 1 2 4 2 . 1 . . 2 . 1 5 6 30 . 4 Fire 471 | 7 50 8 . 5 24 . . . . 15 15 8 5 10 17 12 . . 2 . 12 53 97 11 120 Melee . | . . . . . . . . . . . . . . . . . . . . . . . . . . Ram . | . . . . . . . . . . . . . . . . . . . . . . . . . . Kick . | . . . . . . . . . . . . . . . . . . . . . . . . . . Crush 10 | . . 1 . . 6 . . . . . . . 1 . . . . . . . . 1 . . 1 Escape Stasis 1 | . . . . . . . . . . . . . . . . . . . . . . . 1 . . Rewire 5 | . . . . . . . . . . . . . . . . . . . . . . . 5 . . Trap . | . . . . . . . . . . . . . . . . . . . . . . . . . . Miscellaneous 414 | . 18 2 . 6 39 . 3 . 11 31 6 8 16 13 14 22 . 6 . . 10 63 88 46 12 Route ------- -11/Junkyard -10/Materials (discovered 3 exits: *Mat x2 / *Min) -10/Mines (discovered 2 exits: Mat / *Exi) -10/Exiles (discovered 2 exits: [*Min x2]) -9/Mines -8/Materials (discovered 3 exits: *Fac x3) -7/Factory -7/Waste -7/Factory -7/DSF -6/Factory -6/Lower Caves -6/Lower Caves (discovered 2 exits: *Fac / *Dat) -6/Data Miner -5/Proximity Caves -5/Factory (discovered 2 exits: *Upp x2) -5/Upper Caves -5/Upper Caves -5/Zhirov -4/Proximity Caves -4/Factory -4/DSF -3/Research -3/Testing -2/Research -1/Access History --------- Turn | Location | Event 9 | -11/Junkyard | Upgraded with Propulsion slot (x1) 9 | -11/Junkyard | Upgraded with Utility slot (x1) 9 | -11/Junkyard | Upgraded with Weapon slot (x1) 28 | -11/Junkyard | Discovered new exit (range 14) 934 | -11/Junkyard | Entered Materials 935 | -10/Materials | Build established: Mutant 1102 | -10/Materials | Discovered new exit (range 8) 1152 | -10/Materials | Discovered new exit (range 6) 1481 | -10/Materials | Reached level 2 1502 | -10/Materials | Upgraded with Propulsion slot (x1) 1502 | -10/Materials | Upgraded with Utility slot (x1) 1544 | -10/Materials | Repaired Lgt. Armor Plating 1677 | -10/Materials | Identified exit to Mines 1729 | -10/Materials | Discovered new exit (range 15) 1825 | -10/Materials | Central database locked down 2119 | -10/Materials | Entered Mines 2123 | -10/Mines | Discovered new exit (range 12) 2140 | -10/Mines | Deemed a non-threat by the Exiles lab entrance 2183 | -10/Mines | Reached level 3 2197 | -10/Mines | Upgraded with Power slot (x1) 2197 | -10/Mines | Upgraded with Utility slot (x1) 2209 | -10/Mines | Build established: Scavenger-Mutant 2267 | -10/Mines | Identified exit to Materials 2284 | -10/Mines | Met a Derelict shopkeep closing up shop 2589 | -10/Mines | Assembled infested the area 2593 | -10/Mines | Build established: Mutant 2594 | -10/Mines | Assisted by a Guerilla fighting off Assembled 2792 | -10/Mines | Entered Exiles 2813 | -10/Exiles | Discovered new exit (range 15) 2831 | -10/Exiles | Met 8R-AWN 2858 | -10/Exiles | Met EX-HEX 2919 | -10/Exiles | Met EX-DEC 3002 | -10/Exiles | Learned location of Zion (-7) 3039 | -10/Exiles | Met EX-BIN 3058 | -10/Exiles | Aligned with FarCom system 3060 | -10/Exiles | Given EX-Vault access code 3098 | -10/Exiles | Opened EX-Vault 3113 | -10/Exiles | Found Firepult 3147 | -10/Exiles | Warned to stay clear of 0b10 Research branches 3285 | -10/Exiles | Discovered new exit (range 11) 3299 | -10/Exiles | Left Exiles lab with Firepult 3299 | -10/Exiles | Entered Mines 3309 | -9/Mines | Learned 8 Materials zone layouts 3311 | -9/Mines | Reached level 4 3321 | -9/Mines | Upgraded with Utility slot (x1) 3442 | -9/Mines | Found a damaged Exp. Sensor Array with a note attached 3446 | -9/Mines | Found Prototype Device 3446 | -9/Mines | Identified Exp. Sensor Array 3489 | -9/Mines | A weapon hastily lodged in a ceiling crevice suddenly fell to the ground 3589 | -9/Mines | Build established: Skirmisher 3603 | -9/Mines | Discovered new exit (range 16) 3643 | -9/Mines | Entered Materials 3644 | -8/Materials | Identified exit to Factory 3645 | -8/Materials | Reached level 5 3846 | -8/Materials | Reached level 6 4011 | -8/Materials | Discovered exit to Factory (range 14) 4016 | -8/Materials | Reached level 7 4017 | -8/Materials | Upgraded with Utility slot (x2) 4043 | -8/Materials | First assault squad dispatched 4113 | -8/Materials | Reached level 8 4148 | -8/Materials | Destroyed 9 combat bots 4285 | -8/Materials | Discovered exit to Factory (range 15) 4389 | -8/Materials | Entered Factory 4391 | -7/Factory | Reached level 9 4395 | -7/Factory | Upgraded with Utility slot (x1) 4456 | -7/Factory | Sucked down chute 4456 | -7/Factory | Entered Waste 4457 | -7/Waste | Joined by Warlord forces that had cleared the area 4829 | -7/Waste | Discovered new exit (range 13) 4948 | -7/Waste | Found Damper Plating 5028 | -7/Waste | Entered Factory 5028 | -7/Factory | Accompanied by 20 allies 5103 | -7/Factory | Identified exit to DSF 5110 | -7/Factory | Entered DSF 5110 | -7/DSF | Accompanied by 20 allies 5112 | -7/DSF | Reached level 10 5130 | -7/DSF | Additional patrols routed to DSF 5140 | -7/DSF | Build established: Scavenger-Skirmisher 5164 | -7/DSF | Reached level 11 5164 | -7/DSF | Upgraded with Utility slot (x1) 5218 | -7/DSF | Reached level 12 5219 | -7/DSF | Sterilization system engaged 5239 | -7/DSF | Ambient heat levels rising (+10) 5249 | -7/DSF | Discovered new exit (range 15) 5254 | -7/DSF | Ambient heat levels rising (+10) 5269 | -7/DSF | Ambient heat levels rising (+10) 5284 | -7/DSF | Ambient heat levels rising (+10) 5291 | -7/DSF | Entered Factory 5291 | -6/Factory | Accompanied by 11 allies 5293 | -6/Factory | Reached level 13 5294 | -6/Factory | Upgraded with Propulsion slot (x1) 5462 | -6/Factory | Reached level 14 5463 | -6/Factory | Upgraded with Utility slot (x1) 5674 | -6/Factory | Garrison activated, responded to threat 5676 | -6/Factory | Reached level 15 5829 | -6/Factory | Reached level 16 5954 | -6/Factory | Discovered new exit (range 16) 6064 | -6/Factory | Entered Lower Caves 6064 | -6/Lower Caves | Accompanied by 4 allies 6066 | -6/Lower Caves | Attracted the attention of an 0b10 checkpoint 6072 | -6/Lower Caves | Met a Warlord Commander 6073 | -6/Lower Caves | Learned location of Warlord (-4) 6081 | -6/Lower Caves | Upgraded with Utility slot (x1) 6081 | -6/Lower Caves | Found Encrypted Comm Array 6191 | -6/Lower Caves | Reached level 17 6368 | -6/Lower Caves | Build established: Scavenger-Mutant 7239 | -6/Lower Caves | Discovered new exit (range 13) 7301 | -6/Lower Caves | Learned Factory interactive machine intel 7425 | -6/Lower Caves | Entered another Lower Caves area 7425 | -6/Lower Caves | Accompanied by 3 allies 7445 | -6/Lower Caves | Discovered new exit (range 17) 7834 | -6/Lower Caves | Learned Factory terminal intel 8123 | -6/Lower Caves | Acquired the password to a Derelict Tinkerer's latest research 8154 | -6/Lower Caves | Found Prototype Special Weapon 8180 | -6/Lower Caves | Identified Molecular Deconstructor 8352 | -6/Lower Caves | Caught by Unaware searching for contraband prototypes 8356 | -6/Lower Caves | P-70 Sage assimilated allied KS-BYD(m) 8466 | -6/Lower Caves | Discovered new exit (range 8) 8526 | -6/Lower Caves | Entered Data Miner 8526 | -6/Data Miner | Discovered new exit (range 6) 8528 | -6/Data Miner | Reached level 18 8571 | -6/Data Miner | Met Data Miner 8634 | -6/Data Miner | Learned location of Section 7 (-2) 8634 | -6/Data Miner | Acquired the access code to Warlord's prototype stash 8681 | -6/Data Miner | Received God Mode back door access code from Data Miner 8770 | -6/Data Miner | Interfaced with the Data Conduit 8880 | -6/Data Miner | Entered Proximity Caves 8882 | -5/Proximity Caves | Reached level 19 8909 | -5/Proximity Caves | Upgraded with Utility slot (x1) 8959 | -5/Proximity Caves | Spotted B-75 Beast 8973 | -5/Proximity Caves | Destroyed B-75 Beast 8988 | -5/Proximity Caves | Spotter reported a threat 9174 | -5/Proximity Caves | Spotter reported a threat 9517 | -5/Proximity Caves | Spotter reported a threat 9554 | -5/Proximity Caves | Discovered new exit (range 16) 9593 | -5/Proximity Caves | Entered Factory 9594 | -5/Factory | Loaded intel: 233 machine locations 9595 | -5/Factory | Loaded intel: 51 interactive machine locations 9595 | -5/Factory | Reached level 20 9596 | -5/Factory | Loaded intel: 25 terminal locations 9862 | -5/Factory | Reached level 21 9888 | -5/Factory | Fabricated B-48 Gladiator? 9892 | -5/Factory | Build established: Scavenger-Skirmisher 9893 | -5/Factory | Search patrols dispatched 10196 | -5/Factory | Identified exit to Upper Caves 10204 | -5/Factory | Upgraded with Utility slot (x1) 10276 | -5/Factory | Entered Upper Caves 10281 | -5/Upper Caves | Attracted the attention of an 0b10 outpost 10319 | -5/Upper Caves | Destroyed 7 combat bots 10569 | -5/Upper Caves | Build established: Scavenger-Mutant 10805 | -5/Upper Caves | Attracted the attention of an 0b10 checkpoint 10825 | -5/Upper Caves | Reached level 22 10954 | -5/Upper Caves | Discovered new exit (range 17) 11147 | -5/Upper Caves | Entered another Upper Caves area 11248 | -5/Upper Caves | Encountered a Warlord checkpoint 12124 | -5/Upper Caves | Discovered new exit (range 13) 12160 | -5/Upper Caves | Entered Zhirov 12160 | -5/Zhirov | Discovered new exit (range 3) 12205 | -5/Zhirov | Met Zhirov 12315 | -5/Zhirov | Zhirov requested help retrieving the SGEMP Prototype 12550 | -5/Zhirov | Found Alien Artifact 12598 | -5/Zhirov | Identified Integrated Reactor 12598 | -5/Zhirov | Installed Integrated Reactor, increased core energy generation (+10) 12615 | -5/Zhirov | Found Alien Artifact 12719 | -5/Zhirov | Entered Proximity Caves 12721 | -4/Proximity Caves | Reached level 23 13036 | -4/Proximity Caves | Attracted the attention of an 0b10 checkpoint 13132 | -4/Proximity Caves | Discovered new exit (range 16) 13211 | -4/Proximity Caves | Entered Factory 13212 | -4/Factory | Loaded intel: 242 machine locations 13312 | -4/Factory | Identified exit to DSF 13314 | -4/Factory | Entered DSF 13315 | -4/DSF | Loaded intel: 2 machine locations 13316 | -4/DSF | Reached level 24 13353 | -4/DSF | Additional patrols routed to DSF 13445 | -4/DSF | Found Antimissile System 13477 | -4/DSF | Discovered new exit (range 16) 13496 | -4/DSF | Build established: Scavenger-Skirmisher 13500 | -4/DSF | Sterilization system engaged 13501 | -4/DSF | Entered Research 13502 | -3/Research | Loaded intel: 89 machine locations 13503 | -3/Research | Reached level 25 13503 | -3/Research | Reached level 26 13585 | -3/Research | Upgraded with Utility slot (x1) 13725 | -3/Research | Joined by Warlord Dakka squad 13780 | -3/Research | Garrison activated, responded to threat 13835 | -3/Research | Destroyed 7 combat bots 14151 | -3/Research | Reached level 27 14185 | -3/Research | Upgraded with Propulsion slot (x1) 14284 | -3/Research | Found Centrium Heavy Armor Plating 14359 | -3/Research | Destroyed 12 combat bots 14523 | -3/Research | Joined by Warlord Chimera squad 14587 | -3/Research | Reached level 28 14587 | -3/Research | Intercept squad dispatched 14591 | -3/Research | Spotted Tracker 14593 | -3/Research | Destroyed Tracker 14630 | -3/Research | Spotted Combat Programmer 14633 | -3/Research | Destroyed Combat Programmer 14703 | -3/Research | Identified Transdimensional Reconstructor 14748 | -3/Research | Joined by Warlord Infantry squad 14821 | -3/Research | Upgraded with Propulsion slot (x1) 14923 | -3/Research | Discovered new exit (range 8) 14956 | -3/Research | Entered Testing 14957 | -3/Testing | Maximum security lockdown engaged 14957 | -3/Testing | Loaded intel: 73 machine locations 14998 | -3/Testing | Spotted Alpha 7 15000 | -3/Testing | Destroyed Alpha 7 15000 | -3/Testing | Scanned by Researcher 15034 | -3/Testing | Rewired P0-YON(L) 15038 | -3/Testing | Rewired TS-20Z(L) 15078 | -3/Testing | Reached level 29 15142 | -3/Testing | Destroyed 25 combat bots 15206 | -3/Testing | Spotted Investigator 15209 | -3/Testing | Destroyed Investigator 15209 | -3/Testing | Reached level 30 15243 | -3/Testing | Destroyed 25 combat bots 15370 | -3/Testing | Destroyed Investigator 15388 | -3/Testing | Spotted Striker 15399 | -3/Testing | Destroyed Striker 15429 | -3/Testing | Destroyed 38 combat bots 15563 | -3/Testing | Reached level 31 15569 | -3/Testing | Core integrity fell below 50% 15571 | -3/Testing | Spotted Striker 15575 | -3/Testing | Destroyed Striker 15583 | -3/Testing | Sterilization system engaged 15583 | -3/Testing | Non-combat units ordered to evacuate 15630 | -3/Testing | Destroyed 40 combat bots 15683 | -3/Testing | Combat units ordered to evacuate 15763 | -3/Testing | Discovered new exit (range 9) 15814 | -3/Testing | Found Portable AFG 15883 | -3/Testing | Ambient heat levels rising (+10) 15990 | -3/Testing | Found Prototype Device 15990 | -3/Testing | Identified AEGIS Remote Shield 16033 | -3/Testing | Ambient heat levels rising (+10) 16183 | -3/Testing | Ambient heat levels rising (+10) 16333 | -3/Testing | Ambient heat levels rising (+10) 16341 | -3/Testing | Found Prototype Ballistic Cannon 16341 | -3/Testing | Identified Omega Cannon 16369 | -3/Testing | Spotted Superbehemoth 16378 | -3/Testing | Destroyed Superbehemoth 16483 | -3/Testing | Ambient heat levels rising (+10) 16500 | -3/Testing | Found Prototype Energy Cannon 16500 | -3/Testing | Identified Null Cannon 16633 | -3/Testing | Ambient heat levels rising (+10) 16772 | -3/Testing | Entered Research 16773 | -2/Research | Loaded intel: 129 machine locations 16776 | -2/Research | Identified exit to DSF 16878 | -2/Research | Joined by Warlord Muscle squad 17017 | -2/Research | Joined by Warlord Infantry squad 17022 | -2/Research | First assault squad dispatched 17060 | -2/Research | Discovered new exit (range 16) 17102 | -2/Research | High security lockdown imminent 17129 | -2/Research | Reached level 32 17162 | -2/Research | Entered Access 17163 | -1/Access | Loaded intel: 113 machine locations 17199 | -1/Access | Reached level 33 17333 | -1/Access | Energy Cycler disabled 17373 | -1/Access | Upgraded with Weapon slot (x1) 17412 | -1/Access | First assault squad dispatched 17465 | -1/Access | Spotted B-99 Colossus 17474 | -1/Access | Spotted B-99 Colossus 17481 | -1/Access | Upgraded with Power slot (x1) 17487 | -1/Access | Core integrity fell below 50% 17488 | -1/Access | Warped through subspace 17571 | -1/Access | Reached level 34 17613 | -1/Access | Garrison activated, responded to threat 17617 | -1/Access | Core integrity fell below 20% 17639 | -1/Access | Destroyed 13 combat bots 17677 | -1/Access | Specialist reinforcements revealed to be Infiltrators 17735 | -1/Access | Destroyed by Q531-l with Enhanced Gamma Bomb Array Last Messages --------------- 17717_ Phase Gun melted. 17717_ U-05 Engineer lays Concrete. 17720_ K-01 Serf collects debris. 17720_ U-05 Engineer lays Concrete. 17721_ U-05 Engineer destroyed. 17721_ Door malfunctions. 17721_ U-05 Engineer destroyed. 17722_ U-05 Engineer lays Concrete. 17724_ U-05 Engineer builds a Wall. 17725_ U-05 Engineer destroyed. 17726_ K-01 Serf collects debris. 17727_ U-05 Engineer destroyed. 17728_ Protomatter-17 decays. 17729_ K-01 Serf collects debris. 17730_ Destroyed Biometal Leg. 17731_ Chain reaction triggered in Corrupted Lgt. Ion Engine. 17733_ System corrupted: Matter fused (-7). 17733_ K-01 Serf collects debris. 17733_ K-01 Serf destroyed. 17733_ Chain reaction triggered in Corrupted Lgt. Ion Engine. Map ----- +----------------------------------------------------+ | #############+##?### ????????????????????????????? | | ##??#?????????????????????????????? | | % % #??## ???????????????????????????? | | %% #####? ?? ????????????????????????? | | "" " ##?#? ?? ?????????????????????????? | | "F """ ##?## ?? ????????????????????????? | | """ """ ####? ??? ???????????????????????? | | """ " ##??# ? ? ??????????????????????? | | #####? ?????????????????????? | | % ##### ? ??? ???????????????????? | | %*! ##### ? ?????????????????? | | ###########%% ##### ? ?? ?? ?????????????????? | | # ? ##[! #??## ? ??# ?????????????? | | # ? ## # ### ? ? ? # %#????????????? | | #? ## ##?#??############ % #????????????? | | # ?" ## ########### == # ???"""""??"" | | + """ ## + * # == + ??"""""??"" | | # ?""" ## %# # = % #? ??"""""??"" | | # "? ## # + # ?"""""???T | | # ##!|[# # # ???"""""??"" | | # ? ? ## *# #! =% # ???????"" | | #####+#####! *### #### # = = #???????????"" | | =%%] !% # ?????????? | | % %mQ % | == # ???????????? | | k = ###?#????????? | | ############+##### =@ #? ? ???????? | | ##???##??? [ #?? ?????????? | | ???##?### # % #????????????? | | ?##????### """ == + ?????????? | | "###?###?# """ % # ?"""?"""? | | ? ??? ?? # R"# %#? ?"""T"""? | | ??? ? ? # """ g %%##?#?????????? | | ??? ???? # "" #######/#######!%%####?????????? | | "???##? ? ? # ? ### % # ??????????? | | "???#???## ### ? ?#? ? # ??????????? | | "??????????########## ##? #??"?????????? | | ????T???#????? ## ? #????????""????????? | | ???"???????????? ## ???# ????G?????????? | | ???"????????????? ## "" ""????? ????""????????? | | ?????????????????? ?# ""T""? #?#??????"?????????? | | ????????????????????? ?""" ?#??????????????????? | | ?????????????????????????#???????????????????????? | | ?????????????????????????????????????????????????? | | ?????????????????????????????????????????????????? | | ?????????????????????????????????????????????????? | | ?????????????????????????????????????????????????? | | ?????????????????????????????????????????????????? | | ?????????????????????????????????????????????????? | | ?????????????????????????????????????????????????? | | ?????????????????????????????????????????????????? | +----------------------------------------------------+ Best States ------------- Heat Dissipation 209 Coolant Potential 50 Energy Generation 93 Energy Capacity 850 Matter Stores 300 Matter Capacity 300 Sight Range 21 Robot Scan Range 20 Terrain Scan Range 16 Terrain Scan Density 110 Power Amplification 30 Base Temperature (-) 100 Armor Coverage 4400 Resistance: TH 10 Resistance: EM 90 Propulsion Shielding 90 Point Defense Rating 240 Weapon Cycling 25 Evasion (%) 44 Target Analysis 8 Recoil Reduction 6 Defensive Hacking 14 Authchip Count 1 Item Schematics ----------------- Combat Drone Bay | -6/Data Miner | Free Lgt. Regenerative Plating | -6/Data Miner | Free Enh. Armored Leg | -6/Data Miner | Free Prc. Matter Filter | -6/Data Miner | Free Cld. Plasma Rifle | -6/Data Miner | Free Imp. Heavy Treads | -6/Data Miner | Free Adv. Reaction Control System | -6/Data Miner | Free Micro-nuke Launcher | -6/Data Miner | Free Lrn. Proton Cannon | -6/Data Miner | Free Imp. Linear Gravjet | -6/Data Miner | Free Adv. Recalibrator | -6/Data Miner | Free Assault Drone Bay | -5/Zhirov | Free Exp. Heat Sink | -5/Zhirov | Free Exp. Optical Array | -5/Zhirov | Free Imp. Arc Thrower | -5/Zhirov | Free Fusion Compressor | -3/Research | Scanalyzed Centrium Heavy Armor Plating | -3/Research | Scanalyzed Robot Schematics ------------------ B-60 Warrior | -6/Data Miner | Free R-10 Processor | -6/Data Miner | Free B-48 Gladiator | -6/Data Miner | Free L-41 Fighter | -6/Data Miner | Free Fabricated ------------ B-48 Gladiator | x3 | -5/Factory | Authchip Alien Tech Used ----------------- Integrated Reactor Transdimensional Reconstructor Achievements -------------- None Challenges ------------ None RPGLIKE | -11 -10 -10 -10 -9 -8 -7 -7 -7 -7 -6 -6 -6 -6 -5 -5 -5 -5 -5 -4 -4 -4 -3 -3 -2 -1 --------- Run | Jun Mat Min Exi Min Mat Fac Was Fac DSF Fac Low Low Dat Pro Fac Upp Upp Zhi Pro Fac DSF Res Tes Res Acc Levels Raised 33 | . 1 1 . 1 4 1 . . 3 4 1 . 1 1 2 1 . . 1 . 1 4 3 1 2 XP Earned 53469 | 3000 2440 1000 350 1550 6028 1500 200 . 4103 6006 1596 556 1155 1550 2753 906 170 220 1069 1049 1305 5452 4267 1311 3933 XP Spent 52340 | 2300 1650 1600 . 1560 4865 2900 . . 2600 4000 4200 . . 3500 3800 . . 1250 . . . 7200 5795 . 5120 Upgrades 78 | 6 3 2 . 3 7 4 . . 1 2 2 . . 1 1 . . 1 . . . 3 24 . 18 Power Slot 2 | . . 1 . . . . . . . . . . . . . . . . . . . . . . 1 Propulsion Slot 5 | 1 1 . . . . . . . . 1 . . . . . . . . . . . 2 . . . Utility Slot 13 | 1 1 1 . 1 2 1 . . 1 1 1 . . 1 1 . . . . . . 1 . . . Weapon Slot 2 | 1 . . . . . . . . . . . . . . . . . . . . . . . . 1 Core Integrity 28 | . . . . . 1 . . . . . . . . . . . . . . . . . 11 . 16 Heat Dissipation 18 | . 1 . . 2 3 . . . . . . . . . . . . . . . . . 12 . . Inventory Capacity 6 | 2 . . . . 1 . . . . . 1 . . . . . . 1 . . . . 1 . . Sight Range 1 | . . . . . . 1 . . . . . . . . . . . . . . . . . . . Terrain Scan Density 1 | 1 . . . . . . . . . . . . . . . . . . . . . . . . . TH Resistance % 2 | . . . . . . 2 . . . . . . . . . . . . . . . . . . . Protomatter Created 6618 | . 114 16 . 77 617 . . . . 131 113 55 240 148 241 294 . . . . 104 1150 2857 297 164 Integrity Restored 8363 | . 332 48 . 126 754 . 54 . 226 610 114 157 342 249 290 415 . 124 . . 190 1180 1904 990 258 Core 4393 | . 235 48 . 126 542 . . . . 273 107 124 16 243 72 306 . . . . 121 366 1320 236 258 Parts 3970 | . 97 . . . 212 . 54 . 226 337 7 33 326 6 218 109 . 124 . . 69 814 584 754 . Protomatter Decayed 1729 | . . 47 . . 18 . 179 . 4 123 54 . 48 . 10 . . . . . . 351 732 122 41 Game ------ Seed PowerDiametricMallet Manual? 0 Play Time 03:03:58 Cumulative 469.1 hours Start 2024.01.21 @ 17:37:27 End 2024.01.22 @ 08:13:44 Sessions 3 Manual Loads 0 Difficulty Rogue Special Mode Winter2019/RPGLIKE Game No. 183 Rogue 180 Adventurer 3 Explorer 0 Win Type - Total 8 Types 5/1/0/1/0/1/0/0/0 Lore% 84 Gallery% 89 Achievement% 78 Wizard Run 0 Options --------- ASCII 0 Keyboard 0 Movement Numpad Keybinds 0 Fullscreen 1 Font 18/SmallcapsGlow Map View 76x50 Tactical HUD 1 Map Filters NONE Filters NONE Steam 1 RUN: 2c1605cc-675b-430d-a0a2-f5f20fccfe59